fUST/lending_fUST_20240820
["ID","MTS","AMOUNT","RATE_DAILY","PERIOD"]
[335304857,1724092248021,-500.0,0.00016712,2]
[335304858,1724092248033,-500.0,0.00016712,2]
[335304859,1724092248045,-500.0,0.00016712,2]
[335304860,1724092248056,-500.0,0.00016712,2]
[335304861,1724092248066,-608.89,0.00016712,2]
[335304862,1724092248076,-967.47,0.00016712,2]
[335304863,1724092248087,-500.0,0.00016712,2]
[335304864,1724092248097,-500.0,0.00016712,2]
[335304865,1724092248107,-193.290852,0.00016712,2]
[335304866,1724092248119,-438.59578242,0.00016712,2]
[335304867,1724092248128,-500.0,0.00016712,2]
[335304868,1724092248139,-525.691969,0.00016712,2]
[335304869,1724092248149,-193.290852,0.00016712,2]
[335304870,1724092248159,-525.691969,0.00016712,2]
[335304871,1724092248169,-500.0,0.00016712,2]
[335304872,1724092248180,-500.0,0.00016712,2]
[335304873,1724092248190,-500.0,0.00016712,2]
[335304874,1724092248200,-317.71880532,0.00016712,2]
[335304875,1724092248210,-500.0,0.00016712,2]
[335304876,1724092248220,-500.0,0.00016712,2]
[335304877,1724092248230,-458.62254369,0.00016712,2]
[335304878,1724092248239,-500.0,0.00016712,2]
[335304879,1724092248249,-500.0,0.00016712,2]
[335304880,1724092248259,-500.93,0.00016712,2]
[335304881,1724092248268,-515.56888317,0.00016712,2]
[335304882,1724092248279,-1618.1,0.00016712,2]
[335304883,1724092248288,-500.0,0.00016712,2]
[335304884,1724092248298,-500.0,0.00016712,2]
[335304885,1724092248309,-509.47022206,0.00016712,2]
[335304886,1724092248319,-500.0,0.00016712,2]
[335304887,1724092248328,-500.0,0.00016712,2]
[335304888,1724092248338,-500.0,0.00016712,2]
[335304889,1724092248348,-1788.64,0.00016712,2]
[335304890,1724092248359,-273.8662433,0.00016712,2]
[335304891,1724092248371,-500.0,0.00016712,2]
[335304892,1724092248381,-500.0,0.00016712,2]
[335304893,1724092248391,-500.0,0.00016712,2]
[335304894,1724092248400,-500.0,0.00016712,2]
[335304895,1724092248410,-1863.74,0.00016712,2]
[335304896,1724092248420,-500.0,0.00016712,2]
[335304897,1724092248431,-500.0,0.00016712,2]
[335304898,1724092248441,-173.886593,0.00016712,2]
[335304899,1724092248451,-500.0,0.00016712,2]
[335304900,1724092248462,-177.799236,0.00016712,2]
[335304901,1724092248472,-798.89,0.00016712,2]
[335304902,1724092248482,-173.886593,0.00016712,2]
[335304903,1724092248492,-500.0,0.00016712,2]
[335304904,1724092248502,-500.0,0.00016712,2]
[335304905,1724092248512,-177.799236,0.00016712,2]
[335304906,1724092248522,-500.0,0.00016712,2]
[335304907,1724092248532,-500.0,0.00016712,2]
[335304908,1724092248543,-500.0,0.00016712,2]
[335304909,1724092248553,-500.0,0.00016712,2]
[335304910,1724092248563,-500.0,0.00016712,2]
[335304911,1724092248574,-500.0,0.00016712,2]
[335304912,1724092248583,-500.0,0.00016712,2]
[335304913,1724092248594,-500.0,0.00016712,2]
[335304914,1724092248604,-622.69,0.00016712,2]
[335304915,1724092248615,-535.97,0.00016712,2]
[335304916,1724092248625,-309.837281,0.00016712,2]
[335304917,1724092248635,-527.1,0.00016712,2]
[335304918,1724092248645,-309.837281,0.00016712,2]
[335304919,1724092248802,-358.731823,0.00016712,2]
[335304920,1724092248812,-500.0,0.00016712,2]
[335304921,1724092248823,-358.731823,0.00016712,2]
[335304922,1724092248833,-500.0,0.00016712,2]
[335304923,1724092248843,-314.574683,0.00016712,2]
[335304924,1724092248853,-500.0,0.00016712,2]
[335304925,1724092248862,-364.887795,0.00016712,2]
[335304926,1724092248872,-500.0,0.00016712,2]
[335304927,1724092248882,-314.574683,0.00016712,2]
[335304928,1724092248892,-500.0,0.00016712,2]
[335304929,1724092248901,-500.0,0.00016712,2]
[335304930,1724092248911,-364.887795,0.00016712,2]
[335304931,1724092248920,-500.0,0.00016712,2]
[335304932,1724092248933,-500.0,0.00016712,2]
[335304933,1724092248943,-500.0,0.00016712,2]
[335304934,1724092248953,-500.0,0.00016712,2]
[335304935,1724092248962,-500.0,0.00016712,2]
[335304936,1724092248972,-500.0,0.00016712,2]
[335304937,1724092248982,-4716.08,0.00016712,2]
[335304938,1724092248992,-500.0,0.00016712,2]
[335304939,1724092249001,-500.0,0.00016712,2]
[335304940,1724092249013,-586.77,0.00016712,2]
[335304941,1724092249024,-535.94467732,0.00016712,2]
[335304942,1724092249034,-845.01,0.00016712,2]
[335304943,1724092249043,-500.0,0.00016712,2]
[335304944,1724092249054,-500.0,0.00016712,2]
[335304945,1724092249063,-500.0,0.00016712,2]
[335304946,1724092249073,-257.95092,0.00016712,2]
[335304947,1724092249082,-500.0,0.00016712,2]
[335304948,1724092249092,-500.0,0.00016712,2]
[335304949,1724092249101,-257.95092,0.00016712,2]
[335304950,1724092249111,-500.0,0.00016712,2]
[335304951,1724092249120,-500.0,0.00016712,2]
[335304952,1724092249130,-510.622518,0.00016712,2]
[335304953,1724092249140,-500.0,0.00016712,2]
[335304954,1724092249149,-500.0,0.00016712,2]
[335304955,1724092249159,-500.0,0.00016712,2]
[335304956,1724092249168,-500.0,0.00016712,2]
[335304957,1724092249177,-500.0,0.00016712,2]
[335304958,1724092249186,-500.0,0.00016712,2]
[335304959,1724092249196,-792.68,0.00016712,2]
[335304960,1724092249205,-234.015766,0.00016712,2]
[335304961,1724092249215,-500.0,0.00016712,2]
[335304962,1724092249225,-400.902051,0.00016712,2]
[335304963,1724092249235,-500.0,0.00016712,2]
[335304964,1724092249245,-234.015766,0.00016712,2]
[335304965,1724092249254,-400.902051,0.00016712,2]
[335304966,1724092249264,-151.0,0.00016712,2]
[335304967,1724092249273,-244.270916,0.00016712,2]
[335304968,1724092249283,-500.0,0.00016712,2]
[335304969,1724092249292,-500.0,0.00016712,2]
[335304970,1724092249302,-500.0,0.00016712,2]
[335304971,1724092249312,-579.33,0.00016712,2]
[335304972,1724092249321,-500.0,0.00016712,2]
[335304973,1724092249331,-500.0,0.00016712,2]
[335304974,1724092249340,-500.0,0.00016712,2]
[335304975,1724092249350,-151.0,0.00016712,2]
[335304976,1724092249359,-500.0,0.00016712,2]
[335304977,1724092249370,-500.0,0.00016712,2]
[335304978,1724092249379,-500.0,0.00016712,2]
[335304979,1724092249389,-500.0,0.00016712,2]
[335304980,1724092249398,-500.0,0.00016712,2]
[335304981,1724092249408,-500.0,0.00016712,2]
[335304982,1724092249418,-567.42,0.00016712,2]
[335304983,1724092249429,-649.6,0.00016712,2]
[335304984,1724092249438,-151.0,0.00016712,2]
[335304985,1724092249448,-500.0,0.00016712,2]
[335304986,1724092249458,-500.0,0.00016712,2]
[335304987,1724092249467,-500.0,0.00016712,2]
[335304988,1724092249477,-151.0,0.00016712,2]
[335304989,1724092249487,-500.0,0.00016712,2]
[335304990,1724092249496,-1149.25,0.00016712,2]
[335304991,1724092249506,-500.0,0.00016712,2]
[335304992,1724092249517,-500.0,0.00016712,2]
[335304993,1724092249526,-500.0,0.00016712,2]
[335304994,1724092249536,-160.04994908,0.00016712,2]
[335304995,1724092249545,-500.0,0.00016712,2]
[335304996,1724092249555,-2318.33,0.00016712,2]
[335304997,1724092249564,-500.0,0.00016712,2]
[335304998,1724092249574,-151.0,0.0001675,2]
[335304999,1724092249583,-221.298871,0.0001675,2]
[335305000,1724092249593,-221.298871,0.0001675,2]
[335305001,1724092249603,-151.0,0.0001675,2]
[335305002,1724092249613,-150.632,0.0001675,2]
[335305003,1724092249622,-150.0,0.0001675,2]
[335305004,1724092249632,-150.306,0.0001675,2]
[335305005,1724092249642,-213.019,0.0001675,2]
[335305006,1724092249652,-150.0,0.0001675,2]
[335305007,1724092249661,-150.4,0.0001675,2]
[335305008,1724092249671,-200.0,0.00016773,2]
[335305009,1724092249680,-200.0,0.00016773,2]
[335305010,1724092249691,-200.0,0.00016773,2]
[335305011,1724092249700,-200.0,0.00016773,2]
[335305012,1724092249709,-600.0,0.00016833,2]
[335305013,1724092249719,-500.0,0.00016985,2]
[335305014,1724092249729,-500.0,0.00016985,2]
[335305015,1724092249738,-500.0,0.00016985,2]
[335305016,1724092249748,-500.0,0.00016985,2]
[335305017,1724092249758,-500.0,0.00016985,2]
[335305018,1724092249767,-511.22725887,0.00016985,2]
[335305019,1724092249777,-151.0,0.00016985,2]
[335305020,1724092249787,-151.0,0.00016985,2]
[335305021,1724092249796,-151.0,0.00016985,2]
[335305022,1724092249806,-500.0,0.00016985,2]
[335305023,1724092249815,-500.0,0.00016985,2]
[335305024,1724092249826,-500.0,0.00016985,2]
[335305025,1724092249835,-500.0,0.00016985,2]
[335305026,1724092249845,-228.87346596,0.00016986,2]
[335305027,1724092249854,-500.0,0.00016986,2]
[335305028,1724092249865,-500.0,0.00016986,2]
[335305029,1724092249874,-500.0,0.00016986,2]
[335305030,1724092249884,-500.0,0.00016986,2]
[335305031,1724092249894,-500.0,0.00016986,2]
[335305032,1724092249905,-500.0,0.00016986,2]
[335305033,1724092249915,-500.0,0.00016986,2]
[335305034,1724092249926,-500.0,0.00016986,2]
[335305035,1724092249938,-500.0,0.00016986,2]
[335305036,1724092249948,-500.0,0.00016986,2]
[335305037,1724092249959,-500.0,0.00016986,2]
[335305038,1724092249969,-715.21,0.00016986,2]
[335305039,1724092249979,-500.0,0.00016986,2]
[335305040,1724092249988,-500.0,0.00016986,2]
[335305041,1724092249998,-500.0,0.00016986,2]
[335305042,1724092250009,-500.0,0.00016986,2]
[335305043,1724092250019,-517.48,0.00016986,2]
[335305044,1724092250030,-500.0,0.00016986,2]
[335305045,1724092250041,-500.0,0.00016986,2]
[335305046,1724092250051,-500.0,0.00016986,2]
[335305047,1724092250060,-500.0,0.00016986,2]
[335305048,1724092250070,-283.67920903,0.00016986,2]
[335305049,1724092250380,-154.9255035,0.00014519,2]
[335305050,1724092250390,-500.0,0.00016438,2]
[335305051,1724092250399,-7786.2127165,0.00016699,5]
[335305052,1724092250671,-154.90265982,0.00012121,2]
[335305053,1724092250681,-160.44466579,0.00012121,2]
[335305054,1724092250690,-416.18906705,0.00012121,2]
[335305055,1724092250700,-155.13714738,0.00012121,2]
[335305056,1724092250710,-600.88577429,0.00012121,2]
[335305057,1724092250719,-156.30965679,0.00012121,2]
[335305058,1724092250729,-342.65845262,0.00012121,2]
[335305059,1724092250738,-543.06199596,0.00013699,2]
[335305060,1724092250748,-164.187592,0.00016438,2]
[335305061,1724092250759,-164.187592,0.000165,2]
[335305062,1724092250768,-5244.78933856,0.00016601,2]
[335305063,1724092250778,-116173.05175234,0.00016699,5]
[335305071,1724092865082,898.59338305,9.999e-05,2]
[335305073,1724092920931,168.51084159,0.0001,2]
[335305074,1724092937371,460.45193966,9.999e-05,2]
[335305075,1724092944262,2111.27572321,9.999e-05,2]
[335305076,1724092963030,3619.6667462,9.999e-05,2]
[335305077,1724092965930,3080.88889929,9.999e-05,2]
[335305078,1724092967310,933.80144992,9.999e-05,2]
[335305079,1724092981193,232.45588428,9.999e-05,2]
[335305082,1724093003022,156.85654909,9.999e-05,2]
[335305083,1724093003711,196.74990594,9.999e-05,2]
[335305084,1724093042435,1746.56873634,9.999e-05,2]
[335305097,1724093284938,986.17567884,0.0001,2]
[335305103,1724093366795,-269.93873618,0.00010739,7]
[335305106,1724093392279,-150.0,0.00014,14]
[335305112,1724093421254,-850.0,0.00014,14]
[335305161,1724093432038,-300.0,0.00011383,2]
[335305163,1724093432048,-24900.0,0.00011384,2]
[335305165,1724093432058,-850.86713135,0.00011409,2]
[335305167,1724093432068,-200.0,0.000117,2]
[335305169,1724093432077,-15344.71153942,0.00011731,2]
[335305171,1724093432087,-196.72510748,0.00011771,2]
[335305173,1724093432096,-544.00882293,0.00011987,2]
[335305175,1724093432108,-875.03409483,0.00011987,2]
[335305177,1724093432117,-201.57395078,0.00012121,2]
[335305179,1724093432126,-201.57395078,0.00012121,2]
[335305181,1724093432135,-215.11741299,0.00012121,2]
[335305183,1724093432145,-1500.0,0.00012516,2]
[335305184,1724093432154,-420.0,0.00012522,2]
[335305185,1724093432164,-3092.64278727,0.00012898,2]
[335305188,1724093432174,-165.15843647,0.00012971,2]
[335305190,1724093432183,-157.09608348,0.00012991,2]
[335305192,1724093432193,-295.46454417,0.00012991,2]
[335305193,1724093432202,-157.09608348,0.00012991,2]
[335305194,1724093432211,-154.71377951,0.00012999,2]
[335305195,1724093432221,-461.72590207,0.00013,2]
[335305196,1724093432230,-862.44048895,0.00013,2]
[335305197,1724093432239,-400.0,0.0001307,2]
[335305198,1724093432248,-342.65845262,0.00013333,2]
[335305199,1724093432258,-175.2336411,0.00013699,2]
[335305200,1724093432267,-500.0,0.00013699,2]
[335305201,1724093432276,-567.65988407,0.00013699,2]
[335305202,1724093432285,-194.82337617,0.00013699,2]
[335305203,1724093432295,-587.0,0.00013774,2]
[335305204,1724093432304,-607.725814,0.00014247,2]
[335305205,1724093432314,-163.005757,0.00014247,2]
[335305206,1724093432323,-200.0,0.00014519,2]
[335305207,1724093432335,-222.69133734,0.000149,2]
[335305208,1724093432345,-222.69133733,0.000149,2]
[335305209,1724093432354,-1000.0,0.00015,15]
[335305210,1724093432363,-600.0,0.00015073,2]
[335305211,1724093432373,-823.0,0.00015151,2]
[335305212,1724093432383,-356.070001,0.0001589,2]
[335305213,1724093432392,-153.0,0.00015936,2]
[335305214,1724093432401,-153.0,0.00015936,2]
[335305215,1724093432411,-153.0,0.00015936,2]
[335305216,1724093432420,-153.0,0.00015936,2]
[335305217,1724093432429,-60.33013617,0.00015936,2]
[335305222,1724093438028,-174.83511409,0.00010544,2]
[335305223,1724093438038,-490.16488623,0.00011999,2]
[335305224,1724093438199,-8270.31772647,0.00011999,2]
[335305225,1724093438208,-600.87674953,0.00012886,2]
[335305226,1724093438218,-493.30764145,0.00012971,2]
[335305227,1724093438228,-168.64730881,0.00013998,2]
[335305228,1724093438239,-324.11391944,0.00013998,2]
[335305229,1724093438251,-500.0,0.00013998,2]
[335305230,1724093438261,-500.0,0.00013998,2]
[335305231,1724093438271,-500.0,0.00013998,2]
[335305232,1724093438281,-438.03164687,0.00013998,2]
[335305233,1724093438290,-500.0,0.00013998,2]
[335305234,1724093438300,-500.0,0.00013998,2]
[335305235,1724093438309,-92.66986383,0.00015936,2]
[335305236,1724093438318,-153.0,0.00015936,2]
[335305237,1724093438330,-153.0,0.00015937,2]
[335305238,1724093438340,-153.0,0.00015937,2]
[335305239,1724093438349,-153.0,0.00015937,2]
[335305240,1724093438360,-153.0,0.00015937,2]
[335305241,1724093438371,-153.0,0.0001594,2]
[335305242,1724093438381,-153.0,0.0001594,2]
[335305243,1724093438391,-153.0,0.0001594,2]
[335305244,1724093438400,-153.0,0.0001594,2]
[335305245,1724093438411,-1000.0,0.00016,16]
[335305246,1724093438421,-465.05540049,0.00016199,2]
[335305247,1724093438431,-1297.47434563,0.00016338,2]
[335305248,1724093438441,-167.33482158,0.00016341,2]
[335305249,1724093438451,-1297.47434563,0.00016404,2]
[335305250,1724093438460,-127119.13409,0.00016418,2]
[335305251,1724093438470,-127119.13409,0.00016428,2]
[335305252,1724093438479,-116773.0400468,0.00016438,5]
[335305253,1724093438489,-228.87346596,0.00016438,2]
[335305254,1724093438499,-500.0,0.00016438,2]
[335305255,1724093438508,-500.0,0.00016438,2]
[335305256,1724093438518,-500.0,0.00016438,2]
[335305257,1724093438527,-500.0,0.00016438,2]
[335305258,1724093438537,-500.0,0.00016438,2]
[335305259,1724093438547,-500.0,0.00016438,2]
[335305260,1724093438557,-500.0,0.00016438,2]
[335305261,1724093438566,-500.0,0.00016438,2]
[335305262,1724093438576,-500.0,0.00016438,2]
[335305263,1724093438586,-500.0,0.00016438,2]
[335305264,1724093438595,-500.0,0.00016438,2]
[335305265,1724093438605,-500.0,0.00016438,2]
[335305266,1724093438618,-500.0,0.00016438,2]
[335305267,1724093438628,-500.0,0.00016438,2]
[335305268,1724093438638,-511.22725887,0.00016438,2]
[335305269,1724093438647,-500.0,0.00016438,2]
[335305270,1724093438656,-500.0,0.00016438,2]
[335305271,1724093438666,-500.0,0.00016438,2]
[335305272,1724093438676,-500.0,0.00016438,2]
[335305273,1724093438686,-500.0,0.00016438,2]
[335305274,1724093438695,-500.0,0.00016438,2]
[335305275,1724093438705,-500.0,0.00016438,2]
[335305276,1724093438714,-500.0,0.00016438,2]
[335305277,1724093438724,-500.0,0.00016438,2]
[335305278,1724093438734,-500.0,0.00016438,2]
[335305279,1724093438743,-500.0,0.00016438,2]
[335305280,1724093438752,-500.0,0.00016438,2]
[335305281,1724093438762,-500.0,0.00016438,2]
[335305282,1724093438772,-500.0,0.00016438,2]
[335305283,1724093438782,-500.0,0.00016438,2]
[335305284,1724093438792,-584.74,0.00016438,2]
[335305285,1724093438801,-500.0,0.00016438,2]
[335305286,1724093438811,-549.87,0.00016438,2]
[335305287,1724093438821,-500.0,0.00016438,2]
[335305288,1724093438831,-500.0,0.00016438,2]
[335305289,1724093438840,-500.0,0.00016438,2]
[335305290,1724093438851,-500.0,0.00016438,2]
[335305291,1724093438860,-500.0,0.00016438,2]
[335305292,1724093438870,-500.0,0.00016438,2]
[335305293,1724093438880,-500.0,0.00016438,2]
[335305294,1724093438890,-274.92088285,0.00016438,2]
[335305295,1724093438899,-546.75,0.00016438,2]
[335305296,1724093438908,-500.0,0.00016438,2]
[335305297,1724093438917,-500.0,0.00016438,2]
[335305298,1724093438927,-500.0,0.00016438,2]
[335305299,1724093438937,-500.0,0.00016438,2]
[335305300,1724093438947,-500.0,0.00016438,2]
[335305301,1724093438956,-500.0,0.00016438,2]
[335305302,1724093438966,-500.0,0.00016438,2]
[335305303,1724093438975,-886.48,0.00016438,2]
[335305304,1724093438985,-500.0,0.00016438,2]
[335305305,1724093438994,-500.0,0.00016438,2]
[335305306,1724093439003,-500.0,0.00016438,2]
[335305307,1724093439013,-500.0,0.00016438,2]
[335305308,1724093439023,-500.0,0.00016438,2]
[335305309,1724093439032,-500.0,0.00016438,2]
[335305310,1724093439042,-558.15,0.00016438,2]
[335305311,1724093439051,-500.0,0.00016438,2]
[335305312,1724093439061,-500.0,0.00016438,2]
[335305313,1724093439071,-500.0,0.00016438,2]
[335305314,1724093439080,-500.0,0.00016438,2]
[335305315,1724093439091,-500.0,0.00016438,2]
[335305316,1724093439242,-500.0,0.00016438,2]
[335305317,1724093439253,-500.0,0.00016438,2]
[335305318,1724093439262,-500.0,0.00016438,2]
[335305319,1724093439272,-500.0,0.00016438,2]
[335305320,1724093439282,-500.0,0.00016438,2]
[335305321,1724093439291,-500.0,0.00016438,2]
[335305322,1724093439302,-500.0,0.00016438,2]
[335305323,1724093439311,-500.0,0.00016438,2]
[335305324,1724093439322,-500.0,0.00016438,2]
[335305325,1724093439335,-500.0,0.00016438,2]
[335305326,1724093439344,-500.0,0.00016438,2]
[335305327,1724093439354,-500.0,0.00016438,2]
[335305328,1724093439364,-500.0,0.00016438,2]
[335305329,1724093439373,-2910.27,0.00016438,2]
[335305330,1724093439382,-500.0,0.00016438,2]
[335305331,1724093439392,-500.0,0.00016438,2]
[335305332,1724093439401,-500.0,0.00016438,2]
[335305333,1724093439410,-500.0,0.00016438,2]
[335305334,1724093439419,-500.0,0.00016438,2]
[335305335,1724093439429,-500.0,0.00016438,2]
[335305336,1724093439438,-500.0,0.00016438,2]
[335305337,1724093439448,-500.0,0.00016438,2]
[335305338,1724093439458,-500.0,0.00016438,2]
[335305339,1724093439468,-500.0,0.00016438,2]
[335305340,1724093439477,-500.0,0.00016438,2]
[335305341,1724093439486,-575.84,0.00016438,2]
[335305342,1724093439497,-613.46749391,0.00016438,2]
[335305343,1724093439507,-299.51181522,0.00016438,2]
[335305344,1724093439516,-383.21551815,0.00016438,2]
[335305345,1724093439527,-500.0,0.00016438,2]
[335305346,1724093439536,-500.0,0.00016438,2]
[335305347,1724093439546,-500.0,0.00016438,2]
[335305348,1724093439555,-500.0,0.00016438,2]
[335305349,1724093439565,-500.0,0.00016438,2]
[335305350,1724093439575,-1406.88,0.00016438,2]
[335305351,1724093439584,-500.0,0.00016438,2]
[335305352,1724093439593,-500.0,0.00016438,2]
[335305353,1724093439604,-500.0,0.00016438,2]
[335305354,1724093439616,-500.0,0.00016438,2]
[335305355,1724093439626,-500.0,0.00016438,2]
[335305356,1724093439635,-500.0,0.00016438,2]
[335305357,1724093439645,-500.0,0.00016438,2]
[335305358,1724093439655,-500.0,0.00016438,2]
[335305359,1724093439664,-500.0,0.00016438,2]
[335305360,1724093439674,-500.0,0.00016438,2]
[335305361,1724093439683,-500.0,0.00016438,2]
[335305362,1724093439693,-500.0,0.00016438,2]
[335305363,1724093439702,-500.0,0.00016438,2]
[335305364,1724093439711,-500.0,0.00016438,2]
[335305365,1724093439721,-500.0,0.00016438,2]
[335305366,1724093439731,-500.0,0.00016438,2]
[335305367,1724093439740,-143.65602979,0.00016438,2]
[335305382,1724093443286,-311.69803547,0.00016438,2]
[335305383,1724093443298,-44.64593474,0.00016438,2]
[335305384,1724093443308,-500.0,0.00016438,2]
[335305385,1724093443317,-500.0,0.00016438,2]
[335305386,1724093443327,-500.0,0.00016438,2]
[335305387,1724093443340,-237.52659177,0.00016438,2]
[335305388,1724093443349,-500.0,0.00016438,2]
[335305389,1724093443359,-500.0,0.00016438,2]
[335305390,1724093443371,-271.02353292,0.00016438,2]
[335305391,1724093443382,-500.0,0.00016438,2]
[335305392,1724093443391,-500.0,0.00016438,2]
[335305393,1724093443401,-500.0,0.00016438,2]
[335305394,1724093443410,-500.0,0.00016438,2]
[335305395,1724093443421,-500.0,0.00016438,2]
[335305396,1724093443431,-500.0,0.00016438,2]
[335305397,1724093443441,-500.0,0.00016438,2]
[335305398,1724093443450,-355.01,0.00016438,2]
[335305399,1724093443459,-500.0,0.00016438,2]
[335305400,1724093443469,-7.91818473,0.00016438,2]
[335305402,1724093443481,-492.08181527,0.00016438,2]
[335305404,1724093443491,-500.0,0.00016438,2]
[335305405,1724093443500,-500.0,0.00016438,2]
[335305406,1724093443510,-500.0,0.00016438,2]
[335305407,1724093443520,-147.91821473,0.00016438,2]
[335305519,1724093505329,-347.67,0.00016534,7]
[335305521,1724093547403,-1000.0,0.00021872,120]
[335305522,1724093549672,-1000.0,0.00021872,120]
[335305523,1724093552029,-1000.0,0.00021872,120]
[335305524,1724093553698,-697.1183087,0.00021872,120]
[335305526,1724093599766,-303.0,0.00025,120]
[335305527,1724093669439,-1000.0,0.00019683,30]
[335305554,1724094434143,-3142.18285978,0.00012898,2]
[335305555,1724094434165,-639.84526611,0.00012991,2]
[335305556,1724094434189,-174.79506306,0.00012991,2]
[335305557,1724094434213,-471.7897355,0.00012999,2]
[335305558,1724094441114,-21.51790595,0.00012999,2]
[335305559,1724094441137,-785.35333881,0.00013,2]
[335305609,1724094632297,-300.0,0.00012254,2]
[335305610,1724094632307,-300.0,0.00012254,2]
[335305611,1724094632316,-4933.90143396,0.00012255,2]
[335305633,1724094638320,-19966.09856604,0.00012255,2]
[335305635,1724094638330,-156.82259234,0.00012985,2]
[335305637,1724094638341,-77.08715014,0.00013,2]
[335305639,1724094638351,-156.3242125,0.00013,2]
[335305641,1724094638363,-154.96350239,0.00013051,2]
[335305643,1724094638373,-420.0,0.0001348,2]
[335305645,1724094638383,-301.53815771,0.00013496,2]
[335305647,1724094638394,-197.78705024,0.00013596,2]
[335305649,1724094638405,-3000.0,0.00013699,2]
[335305652,1724094638416,-194.82337617,0.00013699,2]
[335305654,1724094638427,-546.43426388,0.00013971,2]
[335305656,1724094638437,-183.042322,0.00014069,2]
[335305658,1724094638446,-590.63784326,0.00014245,2]
[335305660,1724094638457,-577.339523,0.00014247,2]
[335305661,1724094638467,-173.313705,0.00014247,2]
[335305663,1724094638476,-178.12087349,0.00014519,2]
[335305666,1724094638485,-183.042322,0.00014802,2]
[335305668,1724094638494,-587.0,0.00014828,2]
[335305669,1724094638503,-154.79103211,0.00015757,2]
[335305670,1724094638513,-338.2665,0.0001589,2]
[335305671,1724094638523,-5328.69624806,0.00016291,2]
[335305672,1724094638533,-153.0,0.00016293,2]
[335305673,1724094638543,-153.0,0.00016293,2]
[335305674,1724094638553,-153.0,0.00016293,2]
[335305675,1724094638563,-153.0,0.00016293,2]
[335305676,1724094638574,-153.0,0.00016293,2]
[335305677,1724094638584,-153.0,0.00016293,2]
[335305678,1724094638593,-153.0,0.00016293,2]
[335305679,1724094638603,-153.0,0.00016293,2]
[335305680,1724094638613,-153.0,0.00016301,2]
[335305681,1724094638623,-226.0,0.0001631,2]
[335305682,1724094638635,-1414.0,0.00016334,2]
[335305683,1724094638646,-7726.0,0.00016334,2]
[335305684,1724094638657,-7731.221,0.00016334,2]
[335305685,1724094638667,-995.57628024,0.00016338,2]
[335305686,1724094638676,-415.56990217,0.00016338,2]
[335305687,1724094638685,-995.57628024,0.00016404,2]
[335305688,1724094638699,-150.0,0.00016425,2]
[335305689,1724094638708,-226.87974361,0.00016427,2]
[335305690,1724094638718,-500.0,0.00016427,2]
[335305691,1724094638728,-500.0,0.00016427,2]
[335305692,1724094638738,-406.62215281,0.00016427,2]
[335305693,1724094638748,-500.0,0.00016427,2]
[335305694,1724094638759,-148305.656438,0.00016428,2]
[335305695,1724094638771,-500.0,0.00016438,2]
[335305696,1724094638782,-500.0,0.00016438,2]
[335305697,1724094638791,-500.0,0.00016438,2]
[335305698,1724094638802,-500.0,0.00016438,2]
[335305699,1724094638812,-500.0,0.00016438,2]
[335305700,1724094638821,-500.0,0.00016438,2]